bitfinex/quotes_SOLUSD_20251030
["timestamp","ask_amount","ask_price","bid_price","bid_amount"]
[1761866175416,0.2,183.61,183.6,13.33722846]
[1761866177703,0.2,183.61,183.58,62.4]
[1761866177704,0.2,183.61,183.59,5.44690439]
[1761866177911,0.72,183.6,183.58,61.7]
[1761866178212,0.92,183.61,183.58,61.7]
[1761866178405,0.92,183.61,183.58,67.14714161]
[1761866179507,0.92,183.61,183.58,75.03774698]
[1761866179925,0.92,183.61,183.58,67.14714161]
[1761866181834,0.92,183.61,183.58,75.03774698]
[1761866183233,0.92,183.61,183.58,67.14714161]
[1761866183441,0.72,183.6,183.58,61.7]
[1761866185635,0.2,183.61,183.58,67.14721094]
[1761866185835,0.2,183.61,183.59,7.89060537]
[1761866186042,0.2,183.61,183.59,8.54060537]
[1761866186210,0.2,183.61,183.6,8.54060537]
[1761866186621,0.2,183.61,183.6,7.89060537]
[1761866187917,0.2,183.61,183.6,13.33722846]
[1761866188946,0.92,183.61,183.59,13.33747854]
[1761866189155,0.92,183.61,183.59,5.44687317]
[1761866189633,0.92,183.61,183.58,75.03777047]
[1761866189821,0.72,183.6,183.58,67.1471651]
[1761866190830,0.2,183.61,183.58,67.1471651]
[1761866191035,0.92,183.61,183.58,61.7]
[1761866191259,7.89060537,183.6,183.55,5.4478464]
[1761866191436,0.72,183.59,183.56,7.89060537]
[1761866191636,0.72,183.6,183.57,7.89060537]
[1761866192139,0.72,183.6,183.57,13.33800407]
[1761866192933,0.72,183.6,183.55,7.89060537]
[1761866193133,0.72,183.6,183.54,67.14837025]
[1761866193534,0.72,183.6,183.56,7.89060537]
[1761866194445,0.72,183.6,183.56,13.3383233]
[1761866194749,0.72,183.6,183.55,0.68]
[1761866194750,6.16672286,183.6,183.55,75.03867094]
[1761866195138,0.72,183.59,183.55,75.03867094]
[1761866195335,0.72,183.59,183.55,67.14806557]
[1761866196138,8.61060537,183.59,183.54,5.44834198]
[1761866196344,7.89060537,183.55,183.5,6.89098999]
[1761866196532,13.33889047,183.55,183.5,6.89098999]
[1761866196727,0.72,183.54,183.5,6.89098999]
[1761866197048,38.27143306,183.51,183.5,6.89098999]
[1761866197554,38.99143306,183.51,183.5,6.89098999]
[1761866198646,44.44072737,183.51,183.5,6.89098999]
[1761866199350,77.22072737,183.51,183.5,1e-08]
[1761866199556,9.78882769,183.46,183.4,0.1]
[1761866199760,7.89060537,183.42,183.4,0.1]
[1761866202445,0.72,183.41,183.4,0.1]
[1761866203053,7.89060537,183.42,183.4,0.1]
[1761866203249,8.61060537,183.42,183.4,0.1]
[1761866205741,7.89060537,183.42,183.4,0.1]
[1761866206864,8.61060537,183.41,183.4,0.1]
[1761866207036,38.99143306,183.41,183.4,0.1]
[1761866208046,18.39943306,183.41,183.4,0.1]
[1761866208965,56.63169847,183.41,183.4,0.1]
[1761866210756,23.85169847,183.41,183.4,0.1]
[1761866212336,23.85169847,183.41,183.4,1e-08]
[1761866215975,44.44369847,183.41,183.31,0.1]
[1761866216266,7.89060537,183.32,183.31,0.1]
[1761866217639,7.89060537,183.32,183.31,0.78]
[1761866218066,7.89060537,183.32,183.31,0.1]
[1761866218454,13.34554754,183.32,183.31,0.1]
[1761866219062,23.13437523,183.32,183.31,0.1]
[1761866219455,18.46510856,183.32,183.31,0.1]
[1761866220954,13.01016639,183.32,183.31,0.1]
[1761866221467,18.46510856,183.32,183.31,0.1]
[1761866221956,13.01016639,183.32,183.31,0.1]
[1761866222141,3.2213387,183.33,183.31,0.1]
[1761866222348,23.8133387,183.35,183.31,0.79]
[1761866222573,20.592,183.34,183.31,0.79]
[1761866222871,29.57591935,183.37,183.31,9.46653043]
[1761866222872,13.01016639,183.37,183.31,9.46653043]
[1761866223174,33.60216639,183.37,183.31,9.46653043]
[1761866223468,3.2213387,183.34,183.31,0.1]
[1761866223769,3.2213387,183.32,183.31,0.1]
[1761866225244,3.2213387,183.33,183.31,0.1]
[1761866225460,3.2213387,183.32,183.31,0.1]
[1761866226269,13.71016639,183.32,183.31,0.1]
[1761866226867,13.01016639,183.32,183.31,0.1]
[1761866227558,19.16510856,183.32,183.31,0.1]
[1761866227758,3.2213387,183.33,183.31,0.79]
[1761866227965,20.592,183.34,183.31,0.79]
[1761866227966,23.8133387,183.34,183.31,0.79]
[1761866228159,3.2213387,183.33,183.31,0.79]
[1761866228671,23.8133387,183.34,183.31,0.79]
[1761866228863,20.592,183.35,183.31,9.46651666]
[1761866229177,13.01016639,183.36,183.31,9.46651666]
[1761866229363,13.01016639,183.36,183.32,0.69]
[1761866229564,13.01016639,183.36,183.32,6.14480724]
[1761866229969,13.01016639,183.36,183.33,0.69]
[1761866229970,23.8133387,183.36,183.33,0.69]
[1761866231074,20.592,183.36,183.33,0.69]
[1761866232275,23.8133387,183.36,183.33,0.69]
[1761866232777,20.592,183.36,183.33,0.69]
[1761866234075,23.8133387,183.36,183.33,0.69]
[1761866235160,3.2213387,183.34,183.31,0.1]
[1761866235479,3.2213387,183.34,183.31,0.79]
[1761866235777,3.2213387,183.34,183.31,62.49]
[1761866235978,3.2213387,183.34,183.31,67.94516776]
[1761866236292,3.2213387,183.35,183.32,0.69]
[1761866236479,23.8133387,183.36,183.32,0.69]
[1761866236681,23.8133387,183.36,183.33,5.45464462]
[1761866236872,23.8133387,183.36,183.32,0.69]
[1761866236873,3.2213387,183.35,183.32,6.14493713]
[1761866237276,2.06078799,183.34,183.31,61.8]
[1761866237581,2.06078799,183.33,183.31,61.8]
[1761866239071,2.06078799,183.32,183.31,61.8]
[1761866239474,2.06078799,183.33,183.31,62.49]
[1761866240768,2.06078799,183.32,183.31,62.49]
[1761866241394,2.06078799,183.33,183.31,62.49]
[1761866241682,2.06078799,183.33,183.31,0.79]
[1761866242062,5.45438122,183.34,183.31,0.79]
[1761866242263,2.06078799,183.33,183.31,0.79]
[1761866243771,2.06078799,183.32,183.31,0.1]
[1761866244471,23.36278799,183.32,183.31,0.1]
[1761866244864,33.15161568,183.32,183.31,0.1]
[1761866245697,38.60655785,183.32,183.31,0.1]
[1761866246805,32.44161568,183.32,183.31,0.1]
[1761866247010,22.65278799,183.32,183.31,0.1]
[1761866247171,2.06078799,183.33,183.31,0.79]
[1761866247370,22.65278799,183.34,183.31,0.79]
[1761866247589,22.65278799,183.34,183.31,6.2451225]
[1761866247590,20.592,183.34,183.31,6.2451225]
[1761866247984,20.592,183.34,183.32,0.69]
[1761866248294,20.592,183.34,183.31,0.1]
[1761866248594,20.592,183.34,183.31,0.79]
[1761866249179,2.06078799,183.33,183.31,0.1]
[1761866250094,22.65278799,183.34,183.31,0.82]
[1761866250591,28.10716115,183.34,183.31,0.82]
[1761866251669,2.06078799,183.33,183.31,0.82]
[1761866251875,2.06078799,183.32,183.31,0.1]
[1761866252075,2.77078799,183.32,183.31,0.1]
[1761866253282,8.22573016,183.32,183.31,0.1]
[1761866255388,6.16494217,183.32,183.31,0.1]
[1761866255588,8.22573016,183.32,183.31,0.1]
[1761866256999,18.01455785,183.32,183.31,0.1]
[1761866257893,22.58333802,183.32,183.31,0.1]
[1761866258293,18.01455785,183.32,183.31,0.1]
[1761866258486,2.06078799,183.33,183.31,0.82]
[1761866258686,22.65278799,183.34,183.31,0.82]
[1761866259776,20.592,183.34,183.31,0.82]
[1761866260383,22.65278799,183.34,183.31,0.82]
[1761866260586,23.36278799,183.34,183.31,0.82]
[1761866260795,22.65278799,183.34,183.31,0.82]
[1761866263896,20.592,183.34,183.31,0.82]
[1761866264097,22.65278799,183.34,183.31,0.82]
[1761866266809,3.53910588,183.33,183.31,0.82]
[1761866268291,2.06078799,183.33,183.31,0.82]
[1761866269702,22.65278799,183.34,183.31,6.27517056]
[1761866269909,2.06078799,183.36,183.31,8.33595855]
[1761866270123,3.53833953,183.35,183.32,2.78078799]
[1761866270326,2.06078799,183.39,183.33,2.06078799]
[1761866270533,3.53787504,183.38,183.33,2.78078799]
[1761866270704,3.53787504,183.38,183.34,0.72]
[1761866270909,5.59866303,183.38,183.34,0.72]
[1761866271124,3.53787504,183.37,183.34,0.72]
[1761866271317,3.53787504,183.37,183.34,6.17406254]
[1761866271523,3.53787504,183.37,183.35,0.72]
[1761866273234,3.53787504,183.37,183.31,0.1]
[1761866273235,6.30866303,183.36,183.31,0.1]
[1761866273442,2.06078799,183.32,183.31,0.1]
[1761866273623,5.59866303,183.32,183.31,0.1]
[1761866273835,9.68445015,183.32,183.31,0.1]
[1761866274832,9.68445015,183.32,183.31,0.82]
[1761866275018,9.68445015,183.32,183.31,6.27523975]
[1761866275019,4.08578712,183.32,183.31,6.27523975]
[1761866275539,4.08578712,183.32,183.31,0.82]
[1761866277133,4.0857454,183.32,183.31,0.82]
[1761866278527,4.0857454,183.32,183.31,6.27523975]
[1761866279121,4.0857454,183.32,183.31,8.33602774]
[1761866279520,4.0857454,183.32,183.31,70.03602774]
[1761866280420,2.06078799,183.38,183.31,83.67412713]
[1761866280622,2.06078799,183.38,183.32,0.66]
[1761866280623,2.06078799,183.36,183.32,0.66]
[1761866280826,4.08644367,183.35,183.32,0.66]
[1761866281031,4.08644367,183.34,183.32,0.66]
[1761866281239,4.08644367,183.33,183.32,62.36]
[1761866282036,4.08644367,183.33,183.32,67.81494217]
[1761866282627,6.14723166,183.33,183.32,61.7]
[1761866282824,10.34619165,183.33,183.31,0.1]
[1761866283030,4.08644367,183.32,183.31,0.1]
[1761866284938,4.08644367,183.32,183.31,5.55523975]
[1761866285143,4.08644367,183.32,183.31,6.21523975]
[1761866285544,4.08644367,183.32,183.31,8.27602774]
[1761866285850,25.84881197,183.39,183.31,8.27602774]
[1761866286149,9.68476124,183.38,183.33,7.51543261]
[1761866286350,7.62397325,183.37,183.33,7.51543261]
[1761866286559,4.08564323,183.36,183.34,0.66]
[1761866286739,4.08564323,183.35,183.34,0.66]
[1761866288038,4.08564323,183.35,183.34,6.11434711]
[1761866289056,4.08564323,183.35,183.34,0.66]
[1761866290554,4.08564323,183.35,183.34,6.11434711]
[1761866291066,2.72078799,183.43,183.34,83.51100288]
[1761866291367,2.06078799,183.41,183.35,0.66]
[1761866291655,4.73951276,183.42,183.34,5.45434711]
[1761866291656,2.06078799,183.38,183.34,5.45434711]
[1761866291956,6.14030075,183.37,183.34,5.45434711]
[1761866292160,4.07951276,183.36,183.35,0.66]
[1761866292457,4.07951276,183.36,183.35,6.11404963]
[1761866293460,2.06078799,183.38,183.35,0.66]
[1761866293762,4.07899904,183.37,183.35,0.66]
[1761866293950,2.06078799,183.38,183.35,0.66]
[1761866294138,4.07899864,183.37,183.35,0.66]
[1761866294340,2.06078799,183.38,183.35,0.66]
[1761866294540,4.07827097,183.37,183.35,0.66]
[1761866294867,2.06078799,183.38,183.35,0.66]
[1761866295035,4.07827097,183.37,183.35,0.66]
[1761866295234,2.06078799,183.38,183.35,0.66]
[1761866295541,2.06078799,183.36,183.31,0.76]
[1761866295742,6.13838355,183.35,183.31,0.76]
[1761866296066,4.07759556,183.34,183.31,62.46]
[1761866296245,4.07759556,183.33,183.31,62.46]
[1761866296441,2.74078799,183.39,183.32,2.75078799]
[1761866296646,4.07813013,183.38,183.34,2.06078799]
[1761866296854,4.07813013,183.37,183.34,2.06078799]
[1761866297165,4.07813013,183.36,183.35,0.69]
[1761866297351,5.27681197,183.45,183.35,62.39]
[1761866297547,8.31731039,183.44,183.36,5.45375218]
[1761866297746,20.592,183.41,183.36,5.45375218]
[1761866298046,4.07688645,183.4,183.37,0.69]
[1761866298247,4.07688645,183.39,183.37,0.69]
[1761866298562,51.48747592,183.47,183.38,2.06078799]
[1761866298563,5.27681197,183.47,183.38,2.06078799]
[1761866298763,4.0753925,183.46,183.42,2.06078799]
[1761866298959,4.0753925,183.45,183.43,0.69]
[1761866299144,4.0753925,183.44,183.43,0.69]
[1761866299752,4.0753925,183.44,183.43,6.14167093]
[1761866300138,4.0753925,183.46,183.43,6.14167093]
[1761866300342,4.0753925,183.45,183.43,6.14167093]
[1761866300542,4.0753925,183.44,183.43,6.14167093]
[1761866300943,4.0753925,183.46,183.43,6.14167093]
[1761866301144,4.0753925,183.45,183.43,6.14167093]
[1761866301368,4.0753925,183.44,183.43,6.14167093]
[1761866301583,4.0753925,183.46,183.43,6.14167093]
[1761866301882,4.0753925,183.45,183.43,0.69]
[1761866302066,9.3459738,183.47,183.42,5.45189047]
[1761866302274,4.06760549,183.46,183.43,0.69]
[1761866302449,7.96309369,183.46,183.42,5.45189047]
[1761866302650,7.96309369,183.45,183.38,75.33284091]
[1761866302952,3.2154882,183.42,183.38,0.69]
[1761866303152,3.2154882,183.41,183.38,0.69]
[1761866303459,20.592,183.42,183.38,0.69]
[1761866303460,23.8074882,183.42,183.38,0.69]
[1761866303662,4.06942081,183.41,183.38,0.69]
[1761866303901,4.06942081,183.41,183.38,67.84312777]
[1761866304485,0.68,183.4,183.36,61.7]
[1761866304649,4.06942081,183.41,183.37,3.9054882]
[1761866305057,4.06942081,183.41,183.38,0.69]
[1761866305584,4.06942081,183.4,183.38,0.69]
[1761866305767,29.25956724,183.42,183.38,0.69]
[1761866305965,4.069094,183.41,183.38,0.69]
[1761866306764,4.069094,183.41,183.38,6.14308631]
[1761866307291,20.592,183.4,183.38,5.45308631]
[1761866307578,20.592,183.4,183.37,0.69]
[1761866307762,8.66755016,183.42,183.37,0.69]
[1761866307962,4.0690611,183.41,183.37,0.69]
[1761866308457,13.40688744,183.41,183.37,6.14338827]
[1761866308662,4.7390611,183.4,183.37,5.45338827]
[1761866308974,7.9545493,183.4,183.36,61.7]
[1761866309273,4.0690611,183.39,183.36,62.37]
[1761866310075,4.0690611,183.39,183.36,67.82366075]
[1761866310455,7.9545493,183.38,183.36,61.7]
[1761866310778,4.07032636,183.37,183.36,61.7]
[1761866310952,4.07032636,183.37,183.33,0.67]
[1761866310953,4.07032636,183.37,183.34,5.45429209]
[1761866311155,29.26037289,183.39,183.34,6.12429209]
[1761866311477,4.07077215,183.38,183.35,0.67]
[1761866312165,4.07077215,183.37,183.35,0.67]
[1761866312365,24.4774882,183.39,183.35,0.67]
[1761866312563,12.7401996,183.38,183.31,67.25495209]
[1761866312762,3.2154882,183.36,183.32,0.67]
[1761866313062,20.592,183.35,183.31,61.8]
[1761866313368,0.67,183.34,183.31,61.8]
[1761866313558,4.74271292,183.34,183.31,61.8]
[1761866313876,3.2154882,183.32,183.31,0.1]
[1761866314085,7.95820112,183.32,183.31,0.1]
[1761866314381,4.07271292,183.32,183.31,0.1]
[1761866314561,3.2154882,183.38,183.31,9.44072795]
[1761866314760,4.07185265,183.37,183.33,3.2154882]
[1761866314960,4.07185265,183.37,183.34,0.67]
[1761866315167,4.07185265,183.36,183.34,0.67]
[1761866315369,3.2154882,183.38,183.34,0.67]
[1761866315573,4.07192713,183.37,183.34,0.67]
[1761866315758,4.07192713,183.37,183.34,6.12430244]
[1761866316174,4.07192713,183.36,183.34,6.12430244]
[1761866316359,3.2154882,183.38,183.34,6.12430244]
[1761866316561,7.28749175,183.37,183.34,0.67]
[1761866316875,4.07200355,183.36,183.34,0.67]
[1761866317276,3.2154882,183.37,183.34,0.67]
[1761866317460,4.07214289,183.36,183.34,0.67]
[1761866317657,4.07214289,183.35,183.34,0.67]
[1761866317868,3.2154882,183.37,183.34,6.12431241]
[1761866318071,3.2154882,183.38,183.34,6.12431241]
[1761866318271,4.07228074,183.37,183.35,0.67]
[1761866318468,4.07228074,183.36,183.35,0.67]
[1761866318868,4.07228074,183.38,183.35,0.67]
[1761866319065,4.07228074,183.37,183.35,0.67]
[1761866319269,4.07332613,183.36,183.35,0.67]
[1761866319885,20.592,183.37,183.36,5.45375218]
[1761866320196,24.66532653,183.37,183.36,5.45375218]
[1761866320490,24.66532653,183.37,183.35,6.1240195]
[1761866320693,4.07332653,183.36,183.35,6.1240195]
[1761866321780,4.07332653,183.36,183.33,9.33983903]
[1761866321991,4.07332653,183.35,183.33,5.45435083]
[1761866322487,3.2154882,183.36,183.33,6.12435083]
[1761866322671,7.29095924,183.35,183.33,5.45435083]
[1761866322873,4.07558355,183.34,183.33,6.12435083]
[1761866323261,4.07558355,183.35,183.33,5.45435083]
[1761866323462,4.07558355,183.34,183.32,5.45494217]
[1761866323686,3.8854882,183.36,183.32,67.82494217]
[1761866323878,4.07602705,183.35,183.32,67.82494217]
[1761866324079,4.07602705,183.34,183.32,67.15494217]
[1761866324289,3.8854882,183.36,183.32,67.15494217]
[1761866324290,3.8854882,183.36,183.33,0.67]
[1761866324491,4.59681197,183.47,183.35,3.2154882]
[1761866324791,3.8854882,183.5,183.44,3.2154882]
[1761866325086,20.592,183.49,183.46,3.2154882]
[1761866325270,20.592,183.49,183.45,7.90266349]
[1761866325464,0.67,183.5,183.45,7.90266349]
[1761866325465,20.592,183.48,183.45,8.57266349]
[1761866326592,0.67,183.5,183.46,5.45077946]
[1761866326771,0.67,183.54,183.48,7.90266349]
[1761866326964,8.57266349,183.54,183.48,7.90266349]
[1761866327164,20.592,183.52,183.5,7.90266349]
[1761866327362,20.592,183.52,183.48,7.90266349]
[1761866327687,0.67,183.51,183.47,7.90266349]
[1761866328368,0.67,183.51,183.46,5.45077946]
[1761866329165,0.67,183.51,183.46,13.35344295]
[1761866330164,14.02209532,183.51,183.45,13.35374007]
[1761866330364,20.592,183.5,183.45,5.45107658]
[1761866330665,21.262,183.5,183.45,75.05374007]
[1761866330872,0.67,183.49,183.45,75.05374007]
[1761866331585,21.262,183.51,183.46,7.90266349]
[1761866331790,0.67,183.5,183.46,7.90266349]
[1761866332993,0.67,183.5,183.46,13.35327797]
[1761866333774,0.67,183.5,183.46,5.45061448]
[1761866334577,0.67,183.5,183.46,13.35327797]
[1761866335391,0.67,183.5,183.46,75.05327797]
[1761866336093,0.67,183.5,183.47,7.90266349]
[1761866336878,0.67,183.5,183.46,75.05327797]
[1761866337393,0.2,183.59,183.49,7.90266349]
[1761866337595,0.67,183.56,183.5,7.90266349]
[1761866337897,20.592,183.53,183.51,7.90266349]
[1761866338270,20.592,183.53,183.52,7.90266349]
[1761866338601,20.592,183.53,183.49,0.67]
[1761866338602,7.90266349,183.57,183.5,7.90266349]
[1761866338773,21.242,183.54,183.5,7.90266349]
[1761866338972,0.65,183.54,183.5,7.90266349]
[1761866339592,0.65,183.54,183.5,13.35220008]
[1761866340799,21.242,183.54,183.5,13.35220008]
[1761866341994,7.90266349,183.57,183.52,7.90266349]
[1761866341995,0.65,183.57,183.52,7.90266349]
[1761866342198,20.592,183.56,183.53,7.90266349]
[1761866342505,20.592,183.56,183.54,7.90266349]
[1761866342703,21.242,183.57,183.54,13.35085169]
[1761866343005,0.2,183.59,183.56,7.90266349]
[1761866343505,20.592,183.58,183.56,61.7]
[1761866343688,0.85,183.59,183.56,69.60266349]
[1761866343895,20.592,183.58,183.56,69.60266349]
[1761866344395,0.2,183.59,183.57,7.90266349]
[1761866344604,0.2,183.59,183.58,7.90266349]
[1761866345318,0.2,183.59,183.58,8.65660435]
[1761866345886,0.2,183.59,183.58,71.01660435]
[1761866346393,0.2,183.59,183.58,61.7]
[1761866346592,0.2,183.59,183.58,70.35660435]
[1761866346794,0.2,183.59,183.58,61.7]
[1761866347191,20.592,183.58,183.52,14.28194533]
[1761866347497,20.592,183.58,183.53,5.4484493]
[1761866347695,0.65,183.57,183.53,5.4484493]
[1761866347893,0.65,183.57,183.53,13.3456713]
[1761866348090,20.592,183.58,183.54,7.897222]
[1761866348290,21.242,183.58,183.54,7.897222]
[1761866348691,0.2,183.59,183.56,5.44780998]
[1761866348995,21.242,183.58,183.55,61.7]
[1761866349397,0.65,183.57,183.55,61.7]
[1761866350212,8.547222,183.57,183.55,61.7]
[1761866350412,0.65,183.56,183.55,61.7]
[1761866351118,20.592,183.58,183.55,67.14810678]
[1761866351322,21.242,183.58,183.55,67.14810678]
[1761866351708,20.592,183.58,183.55,75.04532878]
[1761866352490,20.592,183.58,183.55,61.7]
[1761866352916,20.592,183.58,183.54,7.897222]
[1761866353092,20.592,183.58,183.54,8.557222]
[1761866353618,0.2,183.59,183.55,14.00522099]
[1761866354011,0.85,183.59,183.55,14.00522099]
[1761866354319,0.2,183.59,183.58,7.897222]
[1761866354495,0.2,183.59,183.58,8.557222]
[1761866354692,0.2,183.59,183.58,7.897222]
[1761866354890,0.2,183.59,183.58,75.70443847]
[1761866361399,0.2,183.59,183.58,73.03594149]
[1761866363841,0.2,183.59,183.58,11.33594149]
[1761866364123,0.2,183.59,183.58,21.12476918]
[1761866364626,0.2,183.59,183.58,23.30823488]
[1761866365128,0.2,183.61,183.6,5.22872502]
[1761866365628,0.2,183.61,183.6,5.92872502]
[1761866367131,0.2,183.61,183.6,11.37534811]
[1761866369337,0.2,183.61,183.6,8.19944315]
[1761866370443,0.2,183.61,183.6,69.89944315]
[1761866372949,0.2,183.61,183.6,67.14662309]
[1761866373145,0.2,183.61,183.6,69.19944315]
[1761866373639,0.86,183.61,183.6,61.7]
[1761866373827,2.91282006,183.61,183.57,5.4474612]
[1761866374025,0.66,183.6,183.56,5.44776463]
[1761866374244,0.66,183.6,183.56,67.14776463]
[1761866375229,8.4448213,183.6,183.56,67.14776463]
[1761866375432,0.66,183.6,183.56,67.14776463]
[1761866375642,0.66,183.59,183.56,67.14776463]
[1761866376859,0.66,183.59,183.56,61.7]
[1761866377157,2.05282006,183.58,183.55,61.7]
[1761866377361,2.05282006,183.58,183.55,67.14797236]
[1761866377555,0.66,183.57,183.55,67.14797236]
[1761866377855,2.05282006,183.56,183.5,67.87098999]
[1761866378058,4.39374899,183.57,183.5,6.89098999]
[1761866378059,2.05282006,183.53,183.5,6.89098999]
[1761866378559,0.66,183.52,183.5,6.89098999]
[1761866379057,0.66,183.52,183.5,12.34038423]
[1761866379445,0.66,183.52,183.5,6.89098999]
[1761866380138,0.66,183.52,183.5,12.34048964]
[1761866380863,0.66,183.52,183.5,6.89098999]
[1761866381244,15.96469091,183.52,183.5,6.89098999]
[1761866381464,2.05282006,183.51,183.5,6.89098999]
[1761866381761,2.71282006,183.51,183.5,6.89098999]
[1761866381955,0.66,183.51,183.5,6.89098999]
[1761866382264,2.71282006,183.51,183.5,6.89098999]
[1761866382566,8.16211437,183.51,183.5,6.89098999]
[1761866382862,10.51731266,183.51,183.5,6.89098999]
[1761866383646,15.96660697,183.51,183.5,6.89098999]
[1761866388880,33.9667149,183.51,183.5,6.89098999]
[1761866389784,38.16630757,183.51,183.5,6.89098999]
[1761866391376,29.95502733,183.51,183.5,6.89098999]
[1761866391880,25.75543466,183.51,183.5,6.89098999]
[1761866392769,33.9667149,183.51,183.5,6.89098999]
[1761866394047,66.7467149,183.51,183.5,6.89098999]
[1761866394775,20.592,183.48,183.37,8.20623864]
[1761866394958,110.46743429,183.51,183.37,67.85341858]
[1761866394959,2.05282006,183.42,183.37,67.85341858]
[1761866395380,0.66,183.41,183.38,0.7]
[1761866395575,2.05282006,183.41,183.38,0.7]
[1761866398897,20.592,183.42,183.38,6.1530451]
[1761866399392,20.592,183.42,183.39,0.68]
[1761866399863,20.592,183.42,183.39,6.13283]
[1761866400692,23.33482006,183.45,183.4,0.68]
[1761866400877,9.78882769,183.49,183.4,0.68]
[1761866400878,2.05282006,183.49,183.43,2.05282006]
[1761866401191,0.69,183.48,183.44,2.05282006]
[1761866401359,20.592,183.47,183.44,2.05282006]
[1761866401563,0.69,183.48,183.44,0.68]
[1761866401769,0.69,183.48,183.45,5.45107658]
[1761866402180,21.282,183.48,183.44,0.68]
[1761866402401,28.78511611,183.48,183.44,0.68]
[1761866402771,28.09511611,183.48,183.43,61.7]
[1761866402974,0.69,183.47,183.44,0.68]
[1761866403185,28.09511611,183.48,183.44,0.68]
[1761866403500,28.78511611,183.48,183.44,0.68]
[1761866404067,23.33482006,183.48,183.44,6.13126462]
[1761866404383,13.61666407,183.6,183.47,2.05282006]
[1761866404589,2.74282006,183.57,183.45,0.68]
[1761866404889,28.32898616,183.56,183.51,2.05282006]
[1761866405092,20.592,183.56,183.45,0.68]
[1761866405301,21.282,183.56,183.51,2.05282006]
[1761866405704,21.282,183.56,183.51,8.18186986]
[1761866406295,4.03604571,183.55,183.51,8.18186986]
[1761866406480,4.72604571,183.55,183.51,8.18186986]
[1761866406681,4.03604571,183.55,183.52,2.05282006]
[1761866406904,0.69,183.6,183.54,2.05282006]
[1761866407091,21.282,183.6,183.55,2.05282006]
[1761866407296,0.69,183.6,183.55,2.05282006]
[1761866407504,23.33482006,183.6,183.55,2.73282006]
[1761866407682,23.33482006,183.6,183.55,0.68]
[1761866408001,23.33482006,183.6,183.55,6.12790188]
[1761866408408,0.2,183.61,183.59,2.05282006]
[1761866408604,0.2,183.61,183.56,0.68]
[1761866408605,0.2,183.61,183.6,2.05282006]
[1761866409106,0.2,183.61,183.6,2.73282006]
[1761866409907,0.2,183.61,183.58,0.68]
[1761866410332,0.2,183.61,183.58,2.73282006]
[1761866411584,0.2,183.61,183.58,8.17990256]
[1761866411813,0.2,183.61,183.58,5.4470825]
[1761866412120,0.2,183.61,183.58,6.1270825]
[1761866413432,0.2,183.61,183.6,2.05282006]
[1761866413811,0.2,183.61,183.6,2.73282006]
[1761866415027,0.2,183.61,183.6,69.87944315]
[1761866420420,0.2,183.61,183.6,69.19944315]
[1761866420610,0.2,183.61,183.6,69.86944315]
[1761866421426,0.2,183.61,183.6,71.02513821]
[1761866422410,0.2,183.61,183.6,70.35513821]
[1761866422727,0.2,183.61,183.6,67.14662309]
[1761866422918,0.2,183.61,183.6,70.35513821]
[1761866423542,0.2,183.61,183.6,71.02513821]
[1761866423723,0.2,183.61,183.6,67.81662309]
[1761866423925,0.2,183.61,183.6,71.02513821]
[1761866427539,0.2,183.61,183.6,70.35513821]
[1761866428040,0.2,183.61,183.6,71.02513821]
[1761866428446,0.2,183.61,183.6,67.14662309]
[1761866428756,0.92,183.61,183.6,61.7]
[1761866429043,0.2,183.61,183.6,67.14662309]
[1761866429213,0.2,183.61,183.6,71.02513821]
[1761866432745,0.2,183.61,183.6,67.14662309]
[1761866433235,0.2,183.61,183.6,70.35513821]
[1761866434248,0.2,183.61,183.6,71.02513821]
[1761866434827,0.2,183.61,183.6,70.35513821]
[1761866435032,0.2,183.61,183.6,71.02513821]